lending/lending_fUSD_20240411
["ID","MTS","AMOUNT","RATE_DAILY","PERIOD"]
[322211271,1712872256001,-500.0,0.00028493,2]
[322211272,1712872256010,-500.0,0.00028493,2]
[322211273,1712872256019,-1969.21,0.00028493,2]
[322211274,1712872256028,-385.08,0.00028493,2]
[322211275,1712872256038,-500.0,0.00028493,2]
[322211276,1712872256047,-393.08,0.00028493,2]
[322211277,1712872256057,-507.46,0.00028493,2]
[322211278,1712872256066,-500.0,0.00028493,2]
[322211279,1712872256075,-367.26,0.00028493,2]
[322211280,1712872256086,-500.0,0.00028493,2]
[322211281,1712872256099,-636.88,0.00028493,2]
[322211282,1712872256109,-500.0,0.00028493,2]
[322211283,1712872256119,-414.58,0.00028493,2]
[322211284,1712872256131,-500.0,0.00028493,2]
[322211285,1712872256140,-345.36,0.00028493,2]
[322211286,1712872256150,-740.7,0.00028493,2]
[322211287,1712872256162,-622.22,0.00028493,2]
[322211288,1712872256172,-450.8,0.00028493,2]
[322211289,1712872256181,-576.7,0.00028493,2]
[322211290,1712872256190,-500.0,0.00028493,2]
[322211291,1712872256200,-500.0,0.00028493,2]
[322211292,1712872256209,-500.0,0.00028493,2]
[322211293,1712872256219,-386.22434822,0.00028493,2]
[322211294,1712872256229,-500.0,0.00028493,2]
[322211295,1712872256239,-1171.58,0.00028493,2]
[322211296,1712872256248,-500.0,0.00028493,2]
[322211297,1712872256258,-500.0,0.00028493,2]
[322211298,1712872256267,-500.0,0.00028493,2]
[322211299,1712872256277,-326.6,0.00028493,2]
[322211300,1712872256286,-500.0,0.00028493,2]
[322211301,1712872256295,-500.0,0.00028493,2]
[322211302,1712872256305,-500.0,0.00028493,2]
[322211303,1712872256315,-500.0,0.00028493,2]
[322211304,1712872256325,-1557.24,0.00028493,2]
[322211305,1712872256335,-500.0,0.00028493,2]
[322211306,1712872256345,-709.58,0.00028493,2]
[322211307,1712872256354,-722.34,0.00028493,2]
[322211308,1712872256364,-500.0,0.00028493,2]
[322211309,1712872256374,-500.0,0.00028493,2]
[322211310,1712872256383,-534.39,0.00028493,2]
[322211311,1712872256393,-484.44,0.00028493,2]
[322211312,1712872256403,-500.0,0.00028493,2]
[322211313,1712872256413,-616.98,0.00028493,2]
[322211314,1712872256423,-553.46,0.00028493,2]
[322211315,1712872256433,-500.0,0.00028493,2]
[322211316,1712872256443,-512.14,0.00028493,2]
[322211317,1712872256453,-500.0,0.00028493,2]
[322211318,1712872256463,-500.0,0.00028493,2]
[322211319,1712872256473,-500.0,0.00028493,2]
[322211320,1712872256483,-500.0,0.00028493,2]
[322211321,1712872256493,-2237.86,0.00028493,2]
[322211322,1712872256503,-500.0,0.00028493,2]
[322211323,1712872256513,-951.01,0.00028493,2]
[322211324,1712872256523,-500.0,0.00028493,2]
[322211325,1712872256533,-263.75,0.00028493,2]
[322211326,1712872256543,-576.43,0.00028493,2]
[322211327,1712872256553,-500.0,0.00028493,2]
[322211328,1712872256563,-2843.39536575,0.00028493,2]
[322211329,1712872256604,-266.1637508,0.00027397,2]
[322211330,1712872256617,-278.2162492,0.00027397,2]
[322211331,1712872256627,-415.94903858,0.00027397,2]
[322211332,1712872256641,-84.05096142,0.00027397,2]
[322211333,1712872256651,-500.0,0.00027397,2]
[322211334,1712872256661,-223.67463425,0.00028493,2]
[322211335,1712872256671,-1085.97440433,0.00028493,2]
[322211336,1712872256686,-1077.17559567,0.00028493,2]
[322211337,1712872256696,-500.0,0.00028493,2]
[322211338,1712872256705,-500.0,0.00028493,2]
[322211339,1712872256715,-500.0,0.00028493,2]
[322211340,1712872256725,-500.0,0.00028493,2]
[322211341,1712872256735,-243.1716552,0.00028493,2]
[322211342,1712872256745,-136.55274913,0.00028493,2]
[322211343,1712872257074,-500.0,0.00027397,2]
[322211344,1712872257086,-363.44725087,0.00028493,2]
[322211345,1712872257102,-19.31891303,0.00028493,2]
[322211346,1712872257116,-480.68108697,0.00028493,2]
[322211347,1712872257127,-500.0,0.00028493,2]
[322211348,1712872257137,-212.21400645,0.00028493,2]
[322211349,1712872257155,-287.78599355,0.00028493,2]
[322211350,1712872257166,-500.0,0.00028493,2]
[322211351,1712872257177,-204.96,0.00028493,2]
[322211352,1712872257187,-2590.41,0.00028493,2]
[322211353,1712872257198,-2041.58,0.00028493,2]
[322211354,1712872257207,-500.0,0.00028493,2]
[322211355,1712872257218,-500.0,0.00028493,2]
[322211356,1712872257228,-500.0,0.00028493,2]
[322211357,1712872257238,-23200.55,0.00028493,2]
[322211358,1712872257248,-526.2,0.00028493,2]
[322211359,1712872257258,-500.0,0.00028493,2]
[322211360,1712872257268,-500.0,0.00028493,2]
[322211361,1712872257279,-3147.81,0.00028493,2]
[322211362,1712872257292,-500.0,0.00028493,2]
[322211363,1712872257305,-690.48,0.00028493,2]
[322211364,1712872257318,-7798.8,0.00028493,2]
[322211365,1712872257331,-3017.98,0.00028493,2]
[322211366,1712872257343,-500.0,0.00028493,2]
[322211367,1712872257355,-500.0,0.00028493,2]
[322211368,1712872257366,-500.0,0.00028493,2]
[322211369,1712872257376,-737.47,0.00028493,2]
[322211370,1712872257388,-20.90720646,0.00028493,2]
[322211371,1712872257536,-689.40587447,0.00028493,2]
[322211372,1712872257551,-1486.37691907,0.00028493,2]
[322211373,1712872257562,-500.0,0.00028493,2]
[322211374,1712872257573,-500.0,0.00028493,2]
[322211375,1712872257584,-500.0,0.00028493,2]
[322211376,1712872257596,-500.0,0.00028493,2]
[322211377,1712872257607,-500.0,0.00028493,2]
[322211378,1712872257618,-882.55,0.00028493,2]
[322211379,1712872257628,-41.03429341,0.00028493,2]
[322211382,1712872281334,1743.70839054,0.00015749,2]
[322211383,1712872289545,2965.7968536,0.0003,30]
[322211384,1712872332163,8135.16149,0.00020408,2]
[322211386,1712872457338,165.75103513,0.0002041,2]
[322211388,1712872501240,155.0,0.00020408,2]
[322211389,1712872513158,305.64702057,0.0002041,2]
[322211393,1712872566843,251.1321754,0.00020501,2]
[322211396,1712872599159,155.0,0.00020501,2]
[322211398,1712872625425,150.5,0.0002099,15]
[322211399,1712872625895,153.17,0.0002098,15]
[322211400,1712872665972,510.09,0.00019996,2]
[322211448,1712873431718,-155.0,0.00020505,2]
[322211449,1712873431727,-1991.08055774,0.00020505,2]
[322211450,1712873431738,-1030.0,0.00020506,2]
[322211451,1712873431748,-150.0,0.0002051,2]
[322211452,1712873431758,-23170.29354457,0.00020511,2]
[322211453,1712873431768,-440.69,0.00020642,2]
[322211454,1712873431778,-160.0,0.0002072,2]
[322211455,1712873431788,-506.68,0.0002078,2]
[322211456,1712873431797,-335.77467228,0.00020787,2]
[322211457,1712873431807,-250.0,0.00020857,2]
[322211458,1712873431817,-150.99,0.00020857,2]
[322211459,1712873431826,-1074.75721278,0.00020899,2]
[322211460,1712873431836,-11078.30837371,0.000209,2]
[322211461,1712873431846,-153.95757193,0.000209,2]
[322211462,1712873431858,-3969.95953672,0.000209,2]
[322211463,1712873431868,-25671.7516378,0.000209,2]
[322211464,1712873431879,-5985.47378893,0.000209,2]
[322211465,1712873431889,-2156.93926937,0.000209,2]
[322211466,1712873431899,-177.38769492,0.000209,2]
[322211467,1712873431909,-3164.33874241,0.000209,2]
[322211468,1712873431920,-927.48709055,0.000209,2]
[322211469,1712873431930,-306.8812189,0.000209,2]
[322211470,1712873431941,-531.63769006,0.000209,2]
[322211471,1712873431952,-252.27267971,0.000209,2]
[322211472,1712873431963,-649.47,0.00020951,2]
[322211473,1712873431974,-570.59194654,0.00020987,2]
[322211474,1712873431984,-155.83615989,0.00020997,2]
[322211475,1712873431994,-6389.74782867,0.00020997,2]
[322211476,1712873432003,-201.70970814,0.00020997,2]
[322211477,1712873432013,-342.16157541,0.00020997,2]
[322211478,1712873432022,-155.0,0.00020997,2]
[322211479,1712873432031,-5357.36156544,0.00020997,2]
[322211481,1712873432041,-503.87779719,0.00020997,2]
[322211483,1712873432051,-198.43466289,0.00020997,2]
[322211485,1712873432061,-264.23544895,0.00020997,2]
[322211487,1712873432070,-540.83230062,0.00020997,2]
[322211488,1712873432079,-155.8559771,0.00020997,2]
[322211490,1712873432088,-155.17959631,0.00020997,2]
[322211492,1712873432097,-156.42022389,0.00020997,2]
[322211494,1712873432106,-155.39379797,0.00020997,2]
[322211496,1712873432115,-346.59738873,0.00020997,2]
[322211498,1712873432125,-155.0,0.00020997,2]
[322211500,1712873432134,-155.0,0.00020997,2]
[322211503,1712873432143,-160.91122999,0.00020997,2]
[322211506,1712873432152,-155.0,0.00020997,2]
[322211508,1712873432161,-156.00370687,0.00020998,2]
[322211512,1712873432170,-155.55950488,0.00020998,2]
[322211514,1712873432180,-155.0,0.00020998,2]
[322211517,1712873432189,-1044.54849104,0.00020998,2]
[322211519,1712873432198,-239.02913588,0.00020998,2]
[322211521,1712873432208,-155.0,0.00020998,2]
[322211523,1712873432218,-200.27310095,0.00020998,2]
[322211525,1712873432228,-266.62366915,0.00020998,2]
[322211527,1712873432237,-499.99,0.00020998,2]
[322211529,1712873432246,-102228.32945922,0.00020999,2]
[322211629,1712873437708,-624.79293039,0.00020999,2]
[322211678,1712873438367,-36096.97746356,0.00020999,2]
[322211680,1712873438377,-429.52831665,0.00021,2]
[322211682,1712873438387,-951621.22650664,0.00021,2]
[322211728,1712873438824,-2106.13,0.00021,2]
[322211731,1712873438837,-1506915.76892488,0.00021,2]
[322211733,1712873438850,-94061.26603769,0.00021,2]
[322211735,1712873438859,-116340.58009198,0.00021,2]
[322211737,1712873438869,-168608.21167644,0.00021,2]
[322211739,1712873438879,-286.52,0.00021,2]
[322211741,1712873438888,-448.26,0.00021,2]
[322211743,1712873438897,-3099.55,0.00021024,2]
[322211745,1712873438907,-500.0,0.00021108,2]
[322211747,1712873438916,-158.41,0.00021717,2]
[322211749,1712873438926,-158.41,0.00021858,2]
[322211751,1712873438936,-250.0,0.00021918,2]
[322211753,1712873438945,-249.77,0.00021918,2]
[322211755,1712873438954,-250.0,0.00021918,2]
[322211757,1712873438964,-158.41,0.00022,2]
[322211759,1712873438975,-783.55857008,0.00022,2]
[322211761,1712873438984,-52510.69550941,0.00022,2]
[322211763,1712873438996,-2967.56999901,0.00022,2]
[322211766,1712873439008,-6840.57943104,0.00022,2]
[322211863,1712873440006,-1490.97040638,0.00022,2]
[322211866,1712873440019,-767.62233897,0.00022,2]
[322211868,1712873440031,-267074.3717635,0.00022,2]
[322212005,1712873442816,-2965.7968536,0.00022,2]
[322212006,1712873443028,-169.12911613,0.00021999,2]
[322212007,1712873443037,-928.77188324,0.00022,2]
[322212008,1712873443049,-6532.04952721,0.00022,2]
[322212009,1712873443061,-3383.77264564,0.00022,2]
[322212010,1712873443139,-799.62330309,0.00022,2]
[322212023,1712873446013,-531.79720941,0.00021999,2]
[322212024,1712873446023,-2474.17824835,0.00022,2]
[322212026,1712873446072,-358.4367739,0.00022,2]
[322212030,1712873471466,1743.70839054,0.00017052,2]
[322212032,1712873857301,155.0,0.0002,2]
[322212033,1712873877247,155.0,0.0002,2]
[322212034,1712873877462,326.73064045,0.0002,2]
[322212035,1712873893410,326.73064045,0.0002,2]
[322212036,1712873901394,155.0,0.0002,2]
[322212037,1712873911639,326.73064045,0.0002,2]
[322212038,1712873917221,155.0,0.0002,2]
[322212039,1712873929421,326.73064045,0.0002,2]
[322212040,1712873939236,155.0,0.0002,2]
[322212041,1712873945407,326.73064045,0.0002,2]
[322212042,1712873959232,207.14812205,0.0002,2]
[322212043,1712873963423,326.73064045,0.0002,2]
[322212044,1712873983439,326.73064045,0.0002,2]
[322212045,1712873999422,435.69374952,0.0002,2]
[322212046,1712874265066,600.0,0.00018783,2]
[322212059,1712874585897,10000.0,0.00029998,60]
[322212064,1712874631939,-325.09234905,0.0002059,2]
[322212065,1712874631949,-233.47410022,0.00020591,2]
[322212066,1712874631959,-4869.93,0.00020674,2]
[322212067,1712874631968,-9.89734671,0.00020688,2]
[322212068,1712874631990,-490.10265329,0.00020688,2]
[322212069,1712874632000,-150.0,0.00020703,2]
[322212070,1712874632010,-1285.59734672,0.00020704,2]
[322212071,1712874632102,-2107.93265328,0.00020704,2]
[322212072,1712874632113,-160.0,0.00020757,2]
[322212073,1712874632124,-164.03,0.00020828,2]
[322212074,1712874632134,-2990.16475094,0.00020994,2]
[322212075,1712874632146,-499.99,0.00020994,2]
[322212076,1712874632157,-538.09094901,0.00020995,2]
[322212077,1712874632167,-300.0,0.00020999,2]
[322212078,1712874632177,-300.0,0.00020999,2]
[322212079,1712874632187,-300.0,0.00020999,2]
[322212080,1712874632198,-300.0,0.00020999,2]
[322212081,1712874632208,-300.0,0.00020999,2]
[322212082,1712874632218,-300.0,0.00020999,2]
[322212083,1712874632229,-300.0,0.00020999,2]
[322212084,1712874632238,-270.60558491,0.00020999,2]
[322212085,1712874632252,-350.0,0.00021,3]
[322212086,1712874632262,-600.0,0.00021047,2]
[322212087,1712874632273,-9999.99,0.00021377,2]
[322212088,1712874632284,-170.35,0.00021428,2]
[322212089,1712874632294,-2085.9,0.00021567,2]
[322212090,1712874632305,-2085.9,0.00021573,2]
[322212091,1712874632314,-2085.9,0.00021578,2]
[322212093,1712874632325,-2085.9,0.00021584,2]
[322212095,1712874632335,-2085.9,0.0002159,2]
[322212096,1712874632344,-6572.421,0.0002159,2]
[322212097,1712874632354,-2085.9,0.00021595,2]
[322212098,1712874632365,-1251.46309536,0.00021599,2]
[322212099,1712874632374,-2085.9,0.00021601,2]
[322212100,1712874632385,-2085.9,0.00021607,2]
[322212101,1712874632395,-2085.9,0.00021612,2]
[322212102,1712874632404,-2085.9,0.00021618,2]
[322212103,1712874632413,-2085.9,0.00021624,2]
[322212104,1712874632422,-2085.9,0.00021629,2]
[322212105,1712874632431,-2085.9,0.00021635,2]
[322212106,1712874632441,-2085.9,0.00021641,2]
[322212107,1712874632451,-2085.9,0.00021646,2]
[322212108,1712874632460,-2085.9,0.00021652,2]
[322212109,1712874632471,-2085.9,0.00021658,2]
[322212110,1712874632482,-2085.9,0.00021664,2]
[322212111,1712874632491,-2085.9,0.00021669,2]
[322212112,1712874632501,-2085.9,0.00021675,2]
[322212113,1712874632511,-150.0,0.00021788,2]
[322212114,1712874632520,-150.0,0.00021819,2]
[322212115,1712874632531,-249.77,0.00021918,2]
[322212116,1712874632541,-250.0,0.00021918,2]
[322212117,1712874632551,-250.0,0.00021918,2]
[322212118,1712874632562,-712.00836455,0.00021996,2]
[322212119,1712874632572,-269.06271263,0.00021997,2]
[322212120,1712874632581,-2141.00052706,0.00021998,2]
[322212121,1712874632591,-897.68457714,0.00022,2]
[322212122,1712874632600,-1127.87318,0.00022,2]
[322212123,1712874632610,-783.81607988,0.00022,2]
[322212124,1712874632620,-300.0,0.0002206,2]
[322212125,1712874632630,-162.33,0.00022457,2]
[322212126,1712874632640,-167.0,0.00022459,2]
[322212127,1712874632649,-3575.08458125,0.00022522,2]
[322212128,1712874632659,-306.88121887,0.00022522,2]
[322212129,1712874632668,-6100.49752493,0.00022522,2]
[322212130,1712874632678,-181.38447823,0.00022522,2]
[322212131,1712874632688,-1237.30374215,0.00022531,2]
[322212132,1712874632698,-545223.83729356,0.00022532,2]
[322212133,1712874632708,-74630.75894234,0.00022633,2]
[322212134,1712874632718,-10588.50287042,0.00022636,2]
[322212135,1712874632727,-165.28213821,0.00022636,2]
[322212136,1712874632737,-153.99057037,0.00022636,2]
[322212137,1712874632746,-157.041207,0.00022728,3]
[322212138,1712874632756,-157.041207,0.00022729,3]
[322212139,1712874632765,-157.041207,0.0002273,3]
[322212140,1712874632775,-157.041207,0.00022731,3]
[322212141,1712874632784,-157.041207,0.00022732,3]
[322212142,1712874632797,-195854.92421682,0.00022735,2]
[322212143,1712874632825,-188220.93866741,0.00022735,2]
[322212144,1712874632835,-9484.43090369,0.00022736,2]
[322212145,1712874632844,-155.0,0.00022736,2]
[322212146,1712874632854,-4456.01316346,0.00022737,2]
[322212147,1712874632864,-2202.70360446,0.00022737,2]
[322212148,1712874632873,-46261.27180454,0.00022738,2]
[322212149,1712874632883,-167.58667251,0.00022748,2]
[322212150,1712874632892,-175.53,0.00022866,2]
[322212151,1712874632902,-307.01960106,0.00023,2]
[322212152,1712874632911,-173.04934003,0.00023,2]
[322212153,1712874632921,-400.0,0.00023,3]
[322212154,1712874632932,-793.23,0.00023108,2]
[322212155,1712874632942,-167.0,0.000232,2]
[322212156,1712874632953,-158.41,0.00023281,2]
[322212157,1712874632965,-1000.0,0.00023288,2]
[322212158,1712874632974,-1000.0,0.00023288,2]
[322212159,1712874632984,-1000.0,0.00023288,2]
[322212160,1712874632993,-1000.0,0.00023288,2]
[322212161,1712874633002,-1000.0,0.00023288,2]
[322212162,1712874633012,-1000.0,0.00023288,2]
[322212163,1712874633022,-1000.0,0.00023288,2]
[322212164,1712874633031,-1000.0,0.00023288,2]
[322212165,1712874633040,-1000.0,0.00023288,2]
[322212166,1712874633049,-1000.0,0.00023288,2]
[322212167,1712874633059,-1000.0,0.00023288,2]
[322212168,1712874633068,-1000.0,0.00023288,2]
[322212169,1712874633077,-1000.0,0.00023288,2]
[322212170,1712874633086,-1000.0,0.00023288,2]
[322212171,1712874633095,-1000.0,0.00023288,2]
[322212172,1712874633104,-1000.0,0.00023288,2]
[322212173,1712874633112,-1000.0,0.00023288,2]
[322212174,1712874633122,-1000.0,0.00023288,2]
[322212175,1712874633134,-1000.0,0.00023288,2]
[322212176,1712874633144,-1000.0,0.00023288,2]
[322212177,1712874633154,-1000.0,0.00023288,2]
[322212178,1712874633163,-1000.0,0.00023288,2]
[322212179,1712874633173,-1000.0,0.00023288,2]
[322212180,1712874633181,-1000.0,0.00023288,2]
[322212181,1712874633191,-1000.0,0.00023288,2]
[322212182,1712874633203,-1000.0,0.00023288,2]
[322212183,1712874633212,-1000.0,0.00023288,2]
[322212184,1712874633222,-1000.0,0.00023288,2]
[322212185,1712874633233,-1040.0,0.00023288,2]
[322212186,1712874633242,-600.0,0.00023311,2]
[322212187,1712874633252,-1000.0,0.00023344,2]
[322212188,1712874633262,-1000.0,0.00023344,2]
[322212189,1712874633273,-1000.0,0.00023344,2]
[322212190,1712874633282,-1000.0,0.00023344,2]
[322212191,1712874633292,-1000.0,0.00023344,2]
[322212192,1712874633304,-1000.0,0.00023344,2]
[322212193,1712874633313,-1000.0,0.00023344,2]
[322212194,1712874633323,-502.0,0.00023344,2]
[322212195,1712874633333,-1000.0,0.00023344,2]
[322212196,1712874633343,-1000.0,0.00023344,2]
[322212197,1712874633353,-1000.0,0.00023344,2]
[322212198,1712874633364,-1000.0,0.00023344,2]
[322212199,1712874633374,-1000.0,0.00023344,2]
[322212200,1712874633383,-1000.0,0.00023344,2]
[322212201,1712874633393,-1000.0,0.00023344,2]
[322212202,1712874633403,-1000.0,0.00023344,2]
[322212203,1712874633413,-1000.0,0.00023344,2]
[322212204,1712874633423,-1000.0,0.00023344,2]
[322212205,1712874633433,-1000.0,0.00023344,2]
[322212206,1712874633443,-1000.0,0.00023344,2]
[322212207,1712874633454,-1000.0,0.00023344,2]
[322212208,1712874633464,-1000.0,0.00023344,2]
[322212209,1712874633474,-1000.0,0.00023344,2]
[322212210,1712874633483,-1000.0,0.00023344,2]
[322212211,1712874633492,-247.46887935,0.00023344,2]
[322212217,1712874638032,-703.34,0.00023344,2]
[322212297,1712874638874,-49.19112065,0.00023344,2]
[322212300,1712874638884,-1000.0,0.00023344,2]
[322212302,1712874638894,-1000.0,0.00023344,2]
[322212304,1712874638904,-1000.0,0.00023344,2]
[322212306,1712874638913,-1000.0,0.00023344,2]
[322212309,1712874638923,-1000.0,0.00023344,2]
[322212312,1712874638932,-1000.0,0.00023344,2]
[322212315,1712874638942,-964.11913927,0.00023344,2]
[322212319,1712874638953,-35.88086073,0.00023344,2]
[322212320,1712874638963,-1000.0,0.00023344,2]
[322212322,1712874638972,-1000.0,0.00023344,2]
[322212324,1712874638982,-1000.0,0.00023344,2]
[322212326,1712874638991,-1000.0,0.00023344,2]
[322212327,1712874639000,-1000.0,0.00023344,2]
[322212328,1712874639009,-1000.0,0.00023344,2]
[322212329,1712874639018,-1000.0,0.00023344,2]
[322212330,1712874639027,-1000.0,0.00023344,2]
[322212331,1712874639036,-1000.0,0.00023344,2]
[322212332,1712874639044,-1000.0,0.00023344,2]
[322212333,1712874639053,-1000.0,0.00023344,2]
[322212335,1712874639064,-1000.0,0.00023344,2]
[322212337,1712874639074,-1000.0,0.00023344,2]
[322212339,1712874639083,-1000.0,0.00023344,2]
[322212341,1712874639093,-1000.0,0.00023344,2]
[322212343,1712874639102,-1000.0,0.00023344,2]
[322212345,1712874639112,-1000.0,0.00023344,2]
[322212347,1712874639121,-1000.0,0.00023344,2]
[322212349,1712874639131,-1000.0,0.00023344,2]
[322212351,1712874639140,-1000.0,0.00023344,2]
[322212353,1712874639150,-1000.0,0.00023344,2]
[322212355,1712874639160,-1000.0,0.00023344,2]
[322212357,1712874639169,-1000.0,0.00023344,2]
[322212359,1712874639179,-1000.0,0.00023344,2]
[322212361,1712874639188,-1000.0,0.00023344,2]
[322212363,1712874639197,-1000.0,0.00023344,2]
[322212365,1712874639207,-1000.0,0.00023344,2]
[322212367,1712874639216,-1000.0,0.00023344,2]
[322212369,1712874639226,-69.95804359,0.00023344,2]
[322212372,1712874639238,-930.04195641,0.00023344,2]
[322212374,1712874639247,-1000.0,0.00023344,2]
[322212376,1712874639256,-1000.0,0.00023344,2]
[322212378,1712874639265,-1000.0,0.00023344,2]
[322212380,1712874639275,-1000.0,0.00023344,2]
[322212382,1712874639283,-1000.0,0.00023344,2]
[322212384,1712874639293,-1000.0,0.00023344,2]
[322212386,1712874639303,-1000.0,0.00023344,2]
[322212387,1712874639313,-1000.0,0.00023344,2]
[322212389,1712874639322,-1000.0,0.00023344,2]
[322212391,1712874639331,-300.0,0.0002343,2]
[322212393,1712874639340,-158.41,0.00023433,2]
[322212395,1712874639349,-3393.53,0.00023443,2]
[322212398,1712874639359,-3948.93482023,0.000235,2]
[322212400,1712874639368,-158.41,0.00023585,2]
[322212402,1712874639378,-175.53,0.00023675,2]
[322212403,1712874639387,-158.41,0.00023736,2]
[322212405,1712874639397,-158.41,0.00023888,2]
[322212408,1712874639407,-872.0,0.00023916,2]
[322212409,1712874639417,-167.0,0.00023942,2]
[322212411,1712874639426,-224.58872266,0.00024,2]
[322212413,1712874639436,-208.1412814,0.00024,2]
[322212415,1712874639446,-158.41,0.00024039,2]
[322212418,1712874639456,-3575.08458123,0.00024165,2]
[322212420,1712874639465,-6169.94,0.00024174,2]
[322212422,1712874639474,-27970.83,0.00024174,2]
[322212424,1712874639484,-19999.99,0.00024174,2]
[322212426,1712874639493,-1030.71,0.00024174,2]
[322212428,1712874639502,-158.41,0.00024191,2]
[322212430,1712874639511,-160.0,0.00024216,2]
[322212432,1712874639520,-158.41,0.00024343,2]
[322212434,1712874639529,-175.53,0.00024484,2]
[322212436,1712874639538,-158.41,0.00024494,2]
[322212438,1712874639549,-281.52281428,0.000245,2]
[322212440,1712874639559,-249.77,0.00024658,2]
[322212442,1712874639569,-500.0,0.00024658,2]
[322212444,1712874639578,-167.0,0.00024683,2]
[322212446,1712874639588,-2014.28390047,0.000248,2]
[322212448,1712874639597,-170.35,0.00024965,2]
[322212450,1712874639607,-640.70477182,0.00025,2]
[322212452,1712874639617,-1361.79189436,0.00025,2]
[322212454,1712874639626,-5310.07871045,0.00025,2]
[322212456,1712874639635,-269.39941821,0.00025,2]
[322212458,1712874639645,-218.58382044,0.00025,2]
[322212460,1712874639654,-155.0,0.00025,2]
[322212462,1712874639662,-2603.91013845,0.00025,2]
[322212464,1712874639671,-450.0,0.00025,3]
[322212466,1712874639680,-500.0,0.00025,2]
[322212468,1712874639689,-175.53,0.00025292,2]
[322212470,1712874639698,-6100.49752485,0.00025397,2]
[322212472,1712874639708,-167.0,0.00025424,2]
[322212474,1712874639717,-153.99057033,0.00025558,2]
[322212476,1712874639726,-10588.50287035,0.00025569,2]
[322212478,1712874639735,-600.0,0.00025575,2]
[322212480,1712874639744,-714.86624918,0.00025642,2]
[322212482,1712874639753,-3575.08458123,0.00025808,2]
[322212484,1712874639762,-275757.91253332,0.00026,2]
[322212486,1712874639772,-175.53,0.00026101,2]
[322212488,1712874639781,-167.0,0.00026166,2]
[322212490,1712874639791,-3393.53,0.00026183,2]
[322212492,1712874639803,-306.88121887,0.00026569,2]
[322212494,1712874639813,-153.65190147,0.00026899,2]
[322212496,1712874639823,-872.0,0.00026905,2]
[322212498,1712874639832,-175.53,0.0002691,2]
[322212500,1712874639843,-153.65190147,0.00026918,2]
[322212503,1712874639853,-221.49035597,0.00027,2]
[322212506,1712874639862,-10957.47991719,0.00027,2]
[322212509,1712874639873,-42862.08702098,0.00027,2]
[322212530,1712874640058,-526.93680292,0.00027,2]
[322212532,1712874640070,-2462.90147492,0.00027,2]
[322212534,1712874640081,-1740.67726775,0.00027,2]
[322212536,1712874640093,-301.63553316,0.00027,2]
[322212539,1712874640114,-46121.04865719,0.00027,2]
[322212795,1712874642977,-756.62506562,0.00027,2]
[322212796,1712874643034,-4691.57686489,0.00027,2]
[322212808,1712874643142,-7023.88009603,0.00027,2]
[322212843,1712874646174,-325.09234905,0.00026999,2]
[322212844,1712874646184,-783.55857008,0.00026999,2]
[322212845,1712874646195,-1303.33070985,0.00027,2]
[322212846,1712874646335,-70159.9999994,0.00027,2]
[322212847,1712874646348,-69249.99999996,0.00027,2]
[322212848,1712874646391,-4953.90379618,0.00027,2]
[322212849,1712874646410,-308.8565,0.00027,2]
[322212852,1712874711962,21751.46704056,0.0003,30]
[322212853,1712874729984,7276.25,0.00029998,60]
[322212854,1712874813629,10000.0,0.00029998,60]
[322212855,1712875052469,652.0,0.00022,15]
[322212856,1712875089208,10000.0,0.00029998,60]